fUSD/lending_fUSD_20240426
["ID","MTS","AMOUNT","RATE_DAILY","PERIOD"]
[323623017,1714143047545,-954.82,0.00011756,2]
[323623018,1714143047554,-500.0,0.00011756,2]
[323623019,1714143047564,-525.95873797,0.00011756,2]
[323623020,1714143047574,-500.0,0.00011756,2]
[323623021,1714143047584,-500.0,0.00011756,2]
[323623022,1714143047594,-500.0,0.00011756,2]
[323623023,1714143047603,-500.0,0.00011756,2]
[323623024,1714143047614,-548.38,0.00011756,2]
[323623025,1714143047625,-500.0,0.00011756,2]
[323623026,1714143047634,-808.28,0.00011756,2]
[323623027,1714143047644,-500.0,0.00011756,2]
[323623028,1714143047655,-500.0,0.00011756,2]
[323623029,1714143047664,-500.0,0.00011756,2]
[323623030,1714143047674,-500.0,0.00011756,2]
[323623031,1714143047683,-500.0,0.00011756,2]
[323623032,1714143047693,-1168.43,0.00011756,2]
[323623033,1714143047703,-787.7,0.00011756,2]
[323623034,1714143047713,-158.93,0.00011756,2]
[323623035,1714143047723,-6087.0159,0.00011758,2]
[323623036,1714143047735,-717.42,0.00011768,2]
[323623037,1714143047746,-265.66401689,0.00011778,2]
[323623038,1714143047756,-968.988,0.000118,2]
[323623039,1714143047766,-14799.42193903,0.000118,2]
[323623040,1714143047777,-1600.0,0.000118,4]
[323623041,1714143047787,-714.0,0.0001182,2]
[323623042,1714143047798,-500.0,0.00011857,2]
[323623043,1714143047809,-500.0,0.00011857,2]
[323623044,1714143047819,-500.0,0.00011857,2]
[323623045,1714143047829,-521.17781813,0.00011857,2]
[323623046,1714143047839,-500.0,0.00011857,2]
[323623047,1714143047849,-500.0,0.00011857,2]
[323623048,1714143047859,-500.0,0.00011857,2]
[323623049,1714143047870,-500.0,0.00011857,2]
[323623050,1714143047879,-500.0,0.00011857,2]
[323623051,1714143047890,-500.0,0.00011857,2]
[323623052,1714143047901,-500.0,0.00011857,2]
[323623053,1714143047912,-500.0,0.00011857,2]
[323623054,1714143047921,-500.0,0.00011857,2]
[323623055,1714143047932,-500.0,0.00011857,2]
[323623056,1714143047946,-500.0,0.00011857,2]
[323623057,1714143047956,-500.0,0.00011857,2]
[323623058,1714143047967,-500.0,0.00011857,2]
[323623059,1714143047980,-500.0,0.00011857,2]
[323623060,1714143047990,-500.0,0.00011857,2]
[323623061,1714143048002,-500.0,0.00011857,2]
[323623062,1714143048012,-292.94366025,0.00011857,2]
[323623063,1714143048023,-500.0,0.00011857,2]
[323623064,1714143048033,-444.3911085,0.00011857,2]
[323623065,1714143048042,-500.0,0.00011857,2]
[323623066,1714143048052,-500.0,0.00011857,2]
[323623067,1714143048061,-500.0,0.00011857,2]
[323623068,1714143048071,-500.0,0.00011857,2]
[323623069,1714143048080,-172.14589904,0.00011857,2]
[323623070,1714143048090,-500.0,0.00011857,2]
[323623071,1714143048099,-200.0,0.00011857,10]
[323623072,1714143048108,-500.0,0.00011857,2]
[323623073,1714143048118,-500.0,0.00011857,2]
[323623074,1714143048127,-500.0,0.00011857,2]
[323623075,1714143048137,-500.0,0.00011857,2]
[323623076,1714143048151,-500.0,0.00011857,2]
[323623077,1714143048162,-500.0,0.00011857,2]
[323623078,1714143048172,-500.0,0.00011857,2]
[323623079,1714143048182,-202.58432277,0.00011857,2]
[323623080,1714143048194,-500.0,0.00011857,2]
[323623081,1714143048204,-500.0,0.00011857,2]
[323623082,1714143048214,-500.0,0.00011857,2]
[323623083,1714143048224,-500.0,0.00011857,2]
[323623084,1714143048236,-500.0,0.00011857,2]
[323623085,1714143048247,-500.0,0.00011857,2]
[323623086,1714143048258,-500.0,0.00011857,2]
[323623087,1714143048269,-503.90477558,0.00011857,2]
[323623088,1714143048280,-500.0,0.00011857,2]
[323623089,1714143048293,-500.0,0.00011857,2]
[323623090,1714143048305,-500.0,0.00011857,2]
[323623091,1714143048318,-500.0,0.00011857,2]
[323623092,1714143048331,-500.0,0.00011857,2]
[323623093,1714143048342,-223.73295734,0.00011857,2]
[323623094,1714143048354,-500.29492382,0.00011857,2]
[323623095,1714143048364,-475.52754275,0.00011857,2]
[323623096,1714143048374,-222.76062442,0.00011857,2]
[323623097,1714143048384,-405.12568829,0.00011857,2]
[323623098,1714143048393,-500.0,0.00011857,2]
[323623099,1714143048403,-500.0,0.00011857,2]
[323623100,1714143048413,-500.0,0.00011857,2]
[323623101,1714143048424,-500.0,0.00011857,2]
[323623102,1714143048434,-500.0,0.00011857,2]
[323623103,1714143048446,-595.01397329,0.00011857,2]
[323623104,1714143048456,-500.0,0.00011857,2]
[323623105,1714143048466,-500.78474431,0.00011857,2]
[323623106,1714143048480,-500.0,0.00011857,2]
[323623107,1714143048490,-500.50341408,0.00011857,2]
[323623108,1714143048500,-500.0,0.00011857,2]
[323623109,1714143048510,-517.39457533,0.00011857,2]
[323623110,1714143048519,-507.05698453,0.00011857,2]
[323623111,1714143048530,-500.0,0.00011857,2]
[323623112,1714143048539,-348.76841,0.00011857,2]
[323623113,1714143048550,-643.15356735,0.00011857,2]
[323623114,1714143048559,-500.92965615,0.00011857,2]
[323623115,1714143048568,-500.0,0.00011857,2]
[323623116,1714143048579,-318.01663743,0.00011857,2]
[323623117,1714143048590,-500.6473107,0.00011857,2]
[323623118,1714143048599,-501.05,0.00011857,2]
[323623119,1714143048609,-500.0,0.00011857,2]
[323623120,1714143048619,-500.0,0.00011857,2]
[323623121,1714143048629,-500.0,0.00011857,2]
[323623122,1714143048639,-500.0,0.00011857,2]
[323623123,1714143048649,-500.0,0.00011857,2]
[323623124,1714143048658,-500.40972532,0.00011857,2]
[323623125,1714143048667,-500.0,0.00011857,2]
[323623126,1714143048676,-501.13720991,0.00011857,2]
[323623127,1714143048685,-500.0,0.00011857,2]
[323623128,1714143048695,-717.42,0.00011866,2]
[323623129,1714143048705,-500.0,0.00011867,2]
[323623130,1714143048715,-500.0,0.00011867,2]
[323623131,1714143048725,-500.0,0.00011867,2]
[323623132,1714143048736,-500.0,0.00011867,2]
[323623133,1714143048745,-500.0,0.00011867,2]
[323623134,1714143048757,-280.83162006,0.00011867,2]
[323623135,1714143048767,-565.97,0.00011867,2]
[323623136,1714143048777,-931.37,0.00011867,2]
[323623137,1714143048786,-882.3,0.00011867,2]
[323623138,1714143048796,-519.68155398,0.00011867,2]
[323623139,1714143048807,-500.0,0.00011867,2]
[323623140,1714143048816,-401.86,0.00011867,2]
[323623141,1714143048827,-500.0,0.00011867,2]
[323623142,1714143048837,-500.0,0.00011867,2]
[323623143,1714143048846,-500.0,0.00011867,2]
[323623144,1714143048856,-556.07,0.00011867,2]
[323623145,1714143048866,-547.59,0.00011867,2]
[323623146,1714143048877,-500.0,0.00011867,2]
[323623147,1714143048887,-500.0,0.00011867,2]
[323623148,1714143048896,-500.0,0.00011867,2]
[323623149,1714143048906,-500.0,0.00011867,2]
[323623150,1714143048916,-500.0,0.00011867,2]
[323623151,1714143048926,-500.0,0.00011867,2]
[323623152,1714143048937,-500.0,0.00011867,2]
[323623153,1714143048949,-500.0,0.00011867,2]
[323623154,1714143048960,-500.0,0.00011867,2]
[323623155,1714143048971,-500.0,0.00011867,2]
[323623156,1714143048981,-777.88,0.00011867,2]
[323623157,1714143048990,-500.0,0.00011867,2]
[323623158,1714143048999,-500.0,0.00011867,2]
[323623159,1714143049008,-500.0,0.00011867,2]
[323623160,1714143049018,-500.0,0.00011867,2]
[323623161,1714143049029,-500.0,0.00011867,2]
[323623162,1714143049040,-1047.45,0.00011867,2]
[323623163,1714143049050,-500.0,0.00011867,2]
[323623164,1714143049060,-794.44,0.00011867,2]
[323623165,1714143049070,-627.1,0.00011867,2]
[323623166,1714143049082,-500.0,0.00011867,2]
[323623167,1714143049092,-919.78,0.00011867,2]
[323623168,1714143049102,-806.04,0.00011867,2]
[323623169,1714143049111,-500.0,0.00011867,2]
[323623170,1714143049122,-500.0,0.00011867,2]
[323623171,1714143049132,-500.0,0.00011867,2]
[323623172,1714143049141,-500.0,0.00011867,2]
[323623173,1714143049151,-500.0,0.00011867,2]
[323623174,1714143049163,-500.0,0.00011867,2]
[323623175,1714143049172,-500.0,0.00011867,2]
[323623176,1714143049182,-500.0,0.00011867,2]
[323623177,1714143049192,-500.0,0.00011867,2]
[323623178,1714143049202,-500.0,0.00011867,2]
[323623179,1714143049212,-694.55,0.00011867,2]
[323623180,1714143049222,-732.31,0.00011867,2]
[323623181,1714143049235,-500.0,0.00011867,2]
[323623182,1714143049245,-500.0,0.00011867,2]
[323623183,1714143049255,-500.0,0.00011867,2]
[323623184,1714143049264,-684.0,0.00011867,2]
[323623185,1714143049274,-500.0,0.00011867,2]
[323623186,1714143049285,-583.92,0.00011867,2]
[323623187,1714143049294,-500.0,0.00011867,2]
[323623188,1714143049304,-500.0,0.00011867,2]
[323623189,1714143049314,-984.02,0.00011867,2]
[323623190,1714143049325,-1020.45,0.00011867,2]
[323623191,1714143049335,-500.0,0.00011867,2]
[323623192,1714143049345,-500.0,0.00011867,2]
[323623193,1714143049355,-503.48585575,0.00011867,2]
[323623194,1714143049364,-500.0,0.00011867,2]
[323623195,1714143049373,-716.55,0.00011867,2]
[323623196,1714143049382,-370.23498672,0.00011867,2]
[323623197,1714143049391,-696.67,0.00011867,2]
[323623198,1714143049401,-500.0,0.00011867,2]
[323623199,1714143049410,-500.0,0.00011867,2]
[323623200,1714143049419,-500.0,0.00011867,2]
[323623201,1714143049429,-500.0,0.00011867,2]
[323623202,1714143049438,-525.86,0.00011867,2]
[323623203,1714143049448,-500.0,0.00011867,2]
[323623204,1714143049457,-500.0,0.00011867,2]
[323623205,1714143049466,-500.0,0.00011867,2]
[323623206,1714143049475,-500.0,0.00011867,2]
[323623207,1714143049487,-500.0,0.00011867,2]
[323623208,1714143049496,-500.0,0.00011867,2]
[323623209,1714143049506,-768.71,0.00011867,2]
[323623210,1714143049516,-500.0,0.00011867,2]
[323623211,1714143049525,-717.42,0.00011868,2]
[323623212,1714143049534,-717.42,0.00011879,2]
[323623213,1714143049543,-250000.0,0.0001188,2]
[323623214,1714143049553,-307.039782,0.0001188,2]
[323623215,1714143049562,-307.039782,0.0001188,2]
[323623216,1714143049572,-184.52882,0.0001188,2]
[323623217,1714143049581,-1404.314102,0.0001188,2]
[323623218,1714143049591,-1404.314102,0.0001188,2]
[323623219,1714143049601,-1267.55277145,0.00011886,2]
[323623220,1714143049610,-475.61715271,0.00011887,2]
[323623221,1714143049619,-427.88605358,0.00011891,2]
[323623222,1714143049628,-274.70024106,0.00011897,2]
[323623223,1714143049637,-228.8111743,0.00011897,2]
[323623224,1714143049647,-156.04790979,0.00011897,2]
[323623225,1714143049656,-173.71968277,0.00011897,2]
[323623226,1714143049666,-156.19474151,0.00011897,2]
[323623227,1714143049675,-181.32563743,0.00011897,2]
[323623228,1714143049685,-155.47970195,0.00011897,2]
[323623229,1714143049694,-419.53121455,0.00011897,2]
[323623230,1714143049704,-155.0,0.00011897,2]
[323623231,1714143049713,-155.0,0.00011897,2]
[323623232,1714143049723,-238.20007308,0.00011897,2]
[323623233,1714143049734,-155.64393044,0.00011897,2]
[323623234,1714143049745,-155.20047157,0.00011897,2]
[323623235,1714143049756,-161.45924312,0.00011897,2]
[323623236,1714143049766,-155.0,0.00011897,2]
[323623237,1714143049777,-155.24294181,0.00011897,2]
[323623238,1714143049788,-155.30235001,0.00011897,2]
[323623239,1714143049798,-209.13943236,0.00011897,2]
[323623240,1714143049810,-157.19520769,0.00011897,2]
[323623241,1714143049819,-430.92400074,0.00011897,2]
[323623242,1714143049830,-13877.72676017,0.00011897,2]
[323623243,1714143049840,-292.97243512,0.00011897,2]
[323623244,1714143049850,-781.26841583,0.00011897,2]
[323623245,1714143049860,-155.0,0.00011897,2]
[323623246,1714143049871,-155.27839442,0.00011897,2]
[323623247,1714143049883,-192.6832454,0.00011897,2]
[323623248,1714143049892,-376.34397124,0.00011897,2]
[323623249,1714143049901,-155.32315902,0.00011897,2]
[323623250,1714143049911,-155.30493903,0.00011897,2]
[323623251,1714143049920,-155.43640181,0.00011897,2]
[323623252,1714143049931,-709.78541386,0.00011897,2]
[323623253,1714143049941,-303.22233463,0.00011897,2]
[323623254,1714143049951,-155.38260643,0.00011897,2]
[323623255,1714143049961,-155.39862677,0.00011897,2]
[323623256,1714143049970,-309.53138771,0.00011897,2]
[323623257,1714143049979,-185.31571622,0.00011897,2]
[323623258,1714143049989,-1393.58447337,0.00011897,2]
[323623259,1714143049998,-158.8652616,0.00011897,2]
[323623260,1714143050008,-3550.53703344,0.00011898,2]
[323623261,1714143050018,-7115.56486482,0.00011898,2]
[323623262,1714143050027,-3764.08185629,0.00011899,2]
[323623263,1714143050036,-203.99157121,0.00011899,2]
[323623264,1714143050045,-717.42,0.00011899,2]
[323623265,1714143050055,-58004.77435982,0.000119,2]
[323623266,1714143050065,-60788.54708931,0.000119,2]
[323623267,1714143050074,-11396.64064,0.000119,2]
[323623268,1714143050083,-3316.18120553,0.000119,2]
[323623269,1714143050093,-14799.42193898,0.000119,2]
[323623270,1714143050102,-307.039782,0.000119,2]
[323623271,1714143050112,-307.039782,0.000119,2]
[323623272,1714143050121,-300.0,0.000119,4]
[323623273,1714143050130,-1404.314102,0.000119,2]
[323623274,1714143050139,-1404.314102,0.000119,2]
[323623275,1714143050148,-18111.21229912,0.000119,2]
[323623276,1714143050160,-263.13145596,0.000119,2]
[323623277,1714143050169,-1142.84697932,0.000119,2]
[323623278,1714143050178,-2340.64075,0.000119,2]
[323623279,1714143050188,-1000.0,0.00011903,2]
[323623280,1714143050197,-500.0,0.00011903,2]
[323623281,1714143050207,-1000.0,0.00011904,2]
[323623282,1714143050216,-1000.0,0.00011904,2]
[323623283,1714143050227,-500.0,0.00011904,2]
[323623284,1714143050238,-500.0,0.00011904,2]
[323623285,1714143050248,-500.0,0.00011925,2]
[323623286,1714143050257,-500.0,0.00011925,2]
[323623287,1714143050267,-500.0,0.00011925,2]
[323623288,1714143050277,-500.0,0.00011925,2]
[323623289,1714143050287,-571.26,0.00011925,2]
[323623290,1714143050297,-500.0,0.00011925,2]
[323623291,1714143050307,-500.0,0.00011925,2]
[323623292,1714143050318,-500.0,0.00011925,2]
[323623293,1714143050328,-500.0,0.00011925,2]
[323623294,1714143050338,-500.0,0.00011925,2]
[323623295,1714143050350,-526.94652242,0.00011925,2]
[323623296,1714143050359,-631.74,0.00011925,2]
[323623297,1714143050369,-500.0,0.00011925,2]
[323623298,1714143050379,-513.81,0.00011925,2]
[323623299,1714143050389,-500.0,0.00011925,2]
[323623300,1714143050399,-500.0,0.00011925,2]
[323623301,1714143050409,-500.0,0.00011925,2]
[323623302,1714143050419,-500.0,0.00011925,2]
[323623303,1714143050428,-500.0,0.00011925,2]
[323623304,1714143050439,-500.0,0.00011925,2]
[323623305,1714143050449,-870.0,0.00011925,2]
[323623306,1714143050459,-500.0,0.00011925,2]
[323623307,1714143050469,-500.0,0.00011925,2]
[323623308,1714143050479,-500.0,0.00011925,2]
[323623309,1714143050490,-500.0,0.00011925,2]
[323623310,1714143050500,-500.0,0.00011925,2]
[323623311,1714143050511,-500.0,0.00011925,2]
[323623312,1714143050520,-579.26,0.00011925,2]
[323623313,1714143050706,-500.0,0.00011925,2]
[323623314,1714143050717,-500.12,0.00011925,2]
[323623315,1714143050727,-641.46,0.00011925,2]
[323623316,1714143050738,-874.42,0.00011925,2]
[323623317,1714143050747,-500.0,0.00011925,2]
[323623318,1714143050757,-500.0,0.00011925,2]
[323623319,1714143050767,-500.0,0.00011925,2]
[323623320,1714143050776,-500.0,0.00011925,2]
[323623321,1714143050786,-500.0,0.00011925,2]
[323623322,1714143050795,-500.0,0.00011925,2]
[323623323,1714143050804,-500.0,0.00011925,2]
[323623324,1714143050813,-500.0,0.00011925,2]
[323623325,1714143050823,-500.0,0.00011925,2]
[323623326,1714143050832,-500.0,0.00011925,2]
[323623327,1714143050842,-500.0,0.00011925,2]
[323623328,1714143050851,-500.0,0.00011925,2]
[323623329,1714143050860,-500.0,0.00011925,2]
[323623330,1714143050869,-571.29096282,0.00011925,2]
[323623331,1714143050878,-500.0,0.00011925,2]
[323623332,1714143050888,-500.0,0.00011925,2]
[323623333,1714143050897,-890.6,0.00011925,2]
[323623334,1714143050907,-500.0,0.00011925,2]
[323623335,1714143050917,-513.58,0.00011925,2]
[323623336,1714143050927,-500.0,0.00011925,2]
[323623337,1714143050936,-500.0,0.00011925,2]
[323623338,1714143050945,-500.0,0.00011925,2]
[323623339,1714143050955,-500.0,0.00011925,2]
[323623340,1714143050964,-500.0,0.00011925,2]
[323623341,1714143050974,-500.0,0.00011925,2]
[323623342,1714143050982,-676.38,0.00011925,2]
[323623343,1714143050992,-500.0,0.00011925,2]
[323623344,1714143051001,-626.11,0.00011925,2]
[323623345,1714143051011,-500.0,0.00011925,2]
[323623346,1714143051020,-991.74,0.00011925,2]
[323623347,1714143051030,-500.0,0.00011925,2]
[323623348,1714143051039,-500.0,0.00011925,2]
[323623349,1714143051048,-500.0,0.00011925,2]
[323623350,1714143051058,-500.0,0.00011925,2]
[323623351,1714143051068,-500.0,0.00011925,2]
[323623352,1714143051077,-500.0,0.00011925,2]
[323623353,1714143051088,-500.0,0.00011925,2]
[323623354,1714143051097,-500.0,0.00011925,2]
[323623355,1714143051107,-500.0,0.00011925,2]
[323623356,1714143051118,-500.0,0.00011925,2]
[323623357,1714143051128,-500.0,0.00011925,2]
[323623358,1714143051138,-500.0,0.00011925,2]
[323623359,1714143051148,-500.0,0.00011925,2]
[323623360,1714143051163,-500.0,0.00011925,2]
[323623361,1714143051174,-500.0,0.00011925,2]
[323623362,1714143051185,-1027.98,0.00011925,2]
[323623363,1714143051196,-500.0,0.00011925,2]
[323623364,1714143051207,-500.0,0.00011925,2]
[323623365,1714143051218,-500.0,0.00011925,2]
[323623366,1714143051228,-500.0,0.00011925,2]
[323623367,1714143051239,-500.0,0.00011925,2]
[323623368,1714143051249,-507.70447228,0.00011925,2]
[323623369,1714143051259,-259.34,0.00011925,2]
[323623370,1714143051270,-500.0,0.00011925,2]
[323623371,1714143051280,-385.09,0.00011925,2]
[323623372,1714143051289,-500.0,0.00011925,2]
[323623373,1714143051298,-748.11,0.00011925,2]
[323623374,1714143051308,-806.19,0.00011925,2]
[323623375,1714143051317,-500.0,0.00011925,2]
[323623376,1714143051328,-297.21,0.00011925,2]
[323623377,1714143051339,-500.0,0.00011925,2]
[323623378,1714143051349,-500.0,0.00011925,2]
[323623379,1714143051359,-500.0,0.00011925,2]
[323623380,1714143051369,-500.0,0.00011925,2]
[323623381,1714143051381,-632.58,0.00011925,2]
[323623382,1714143051391,-500.0,0.00011925,2]
[323623383,1714143051401,-500.0,0.00011925,2]
[323623384,1714143051411,-500.0,0.00011925,2]
[323623385,1714143051422,-500.0,0.00011925,2]
[323623386,1714143051433,-500.0,0.00011925,2]
[323623387,1714143051444,-500.0,0.00011925,2]
[323623388,1714143051455,-500.0,0.00011925,2]
[323623389,1714143051463,-500.0,0.00011925,2]
[323623390,1714143051472,-500.0,0.00011925,2]
[323623391,1714143051484,-500.0,0.00011925,2]
[323623392,1714143051496,-500.0,0.00011925,2]
[323623393,1714143051506,-500.0,0.00011925,2]
[323623394,1714143051517,-500.0,0.00011925,2]
[323623395,1714143051527,-649.44431365,0.00011925,2]
[323623396,1714143051537,-500.0,0.00011925,2]
[323623397,1714143051548,-500.0,0.00011925,2]
[323623398,1714143051558,-500.0,0.00011925,2]
[323623399,1714143051569,-500.0,0.00011925,2]
[323623400,1714143051579,-500.0,0.00011925,2]
[323623401,1714143051590,-500.0,0.00011925,2]
[323623402,1714143051601,-500.0,0.00011925,2]
[323623403,1714143051611,-500.0,0.00011925,2]
[323623404,1714143051622,-365.9,0.00011925,2]
[323623405,1714143051632,-898.25,0.00011925,2]
[323623406,1714143051643,-500.0,0.00011925,2]
[323623407,1714143051654,-500.0,0.00011925,2]
[323623408,1714143051663,-500.0,0.00011925,2]
[323623409,1714143051673,-500.0,0.00011925,2]
[323623410,1714143051683,-685.72,0.00011925,2]
[323623411,1714143051692,-500.0,0.00011925,2]
[323623412,1714143051702,-500.0,0.00011925,2]
[323623413,1714143051712,-500.0,0.00011925,2]
[323623414,1714143051722,-500.0,0.00011925,2]
[323623415,1714143051733,-150.0,0.00011925,2]
[323623416,1714143051743,-898.08,0.00011925,2]
[323623417,1714143051754,-500.0,0.00011925,2]
[323623418,1714143051765,-500.0,0.00011925,2]
[323623419,1714143051776,-858.07,0.00011925,2]
[323623420,1714143051786,-500.0,0.00011925,2]
[323623421,1714143051797,-500.0,0.00011925,2]
[323623422,1714143051807,-1858.71,0.00011925,2]
[323623423,1714143051817,-500.0,0.00011925,2]
[323623424,1714143051827,-500.0,0.00011925,2]
[323623425,1714143051836,-500.0,0.00011925,2]
[323623426,1714143051845,-500.0,0.00011925,2]
[323623427,1714143051854,-500.0,0.00011925,2]
[323623428,1714143051864,-500.0,0.00011925,2]
[323623429,1714143051873,-500.0,0.00011925,2]
[323623430,1714143051883,-500.0,0.00011925,2]
[323623431,1714143051892,-500.0,0.00011925,2]
[323623432,1714143051901,-500.0,0.00011925,2]
[323623433,1714143051912,-500.0,0.00011925,2]
[323623434,1714143051921,-500.0,0.00011925,2]
[323623435,1714143051930,-871.08,0.00011925,2]
[323623436,1714143051941,-500.0,0.00011925,2]
[323623437,1714143051951,-1121.0,0.00011925,2]
[323623438,1714143051961,-523.59404514,0.00011925,2]
[323623439,1714143051970,-500.0,0.00011925,2]
[323623440,1714143051981,-500.0,0.00011925,2]
[323623441,1714143051993,-500.0,0.00011925,2]
[323623442,1714143052003,-500.0,0.00011925,2]
[323623443,1714143052012,-1137.66,0.00011925,2]
[323623444,1714143052021,-538.17,0.00011925,2]
[323623445,1714143052031,-500.0,0.00011925,2]
[323623446,1714143052042,-500.0,0.00011925,2]
[323623447,1714143052051,-500.0,0.00011925,2]
[323623448,1714143052061,-500.0,0.00011925,2]
[323623449,1714143052071,-500.0,0.00011925,2]
[323623450,1714143052083,-1445.04,0.00011925,2]
[323623451,1714143052092,-1336.77,0.00011926,2]
[323623452,1714143052102,-500.0,0.00011926,2]
[323623453,1714143052112,-693.45,0.00011926,2]
[323623454,1714143052122,-500.0,0.00011926,2]
[323623455,1714143052132,-500.0,0.00011926,2]
[323623456,1714143052142,-500.0,0.00011926,2]
[323623457,1714143052154,-500.0,0.00011926,2]
[323623458,1714143052168,-500.0,0.00011926,2]
[323623459,1714143052178,-500.0,0.00011926,2]
[323623460,1714143052187,-500.0,0.00011926,2]
[323623461,1714143052196,-886.32,0.00011926,2]
[323623462,1714143052206,-500.0,0.00011926,2]
[323623463,1714143052215,-1136.62,0.00011926,2]
[323623464,1714143052224,-500.0,0.00011926,2]
[323623465,1714143052234,-537.4,0.00011926,2]
[323623466,1714143052244,-500.0,0.00011926,2]
[323623467,1714143052253,-351.88,0.00011926,2]
[323623468,1714143052262,-500.0,0.00011926,2]
[323623469,1714143052272,-248.49173843,0.00011926,2]
[323623470,1714143052282,-500.0,0.00011926,2]
[323623471,1714143052292,-500.0,0.00011926,2]
[323623472,1714143052302,-319.83,0.00011927,2]
[323623473,1714143052312,-351.39622439,0.00011927,2]
[323623474,1714143052322,-500.0,0.00011927,2]
[323623475,1714143052331,-515.94225237,0.00011927,2]
[323623476,1714143052340,-500.0,0.00011927,2]
[323623477,1714143052350,-500.0,0.00011927,2]
[323623478,1714143052360,-500.0,0.00011927,2]
[323623479,1714143052370,-384.05253276,0.00011927,2]
[323623480,1714143052379,-500.0,0.00011927,2]
[323623481,1714143052388,-500.0,0.00011927,2]
[323623482,1714143052398,-954.12,0.00011927,2]
[323623483,1714143052407,-217.81,0.00011927,2]
[323623484,1714143052417,-500.0,0.00011927,2]
[323623485,1714143052427,-634.99,0.00011927,2]
[323623486,1714143052437,-2603.46,0.00011927,2]
[323623487,1714143052446,-239.8,0.00011927,2]
[323623488,1714143052456,-7779.03,0.00011927,2]
[323623489,1714143052465,-202.35103108,0.00011927,2]
[323623490,1714143052474,-500.0,0.00011927,2]
[323623491,1714143052485,-500.0,0.00011927,2]
[323623492,1714143052494,-683.84,0.00011927,2]
[323623493,1714143052504,-500.0,0.00011927,2]
[323623494,1714143052513,-575.8,0.00011927,2]
[323623495,1714143052522,-192.1,0.00011927,2]
[323623496,1714143052532,-500.0,0.00011927,2]
[323623497,1714143052541,-551.0,0.00011927,2]
[323623498,1714143052551,-551.18,0.00011927,2]
[323623499,1714143052560,-1066.65,0.00011927,2]
[323623500,1714143052569,-500.0,0.00011927,2]
[323623501,1714143052578,-500.0,0.00011927,2]
[323623502,1714143052587,-308.16,0.00011927,2]
[323623503,1714143052597,-500.0,0.00011927,2]
[323623504,1714143052606,-500.0,0.00011927,2]
[323623505,1714143052616,-233.52212234,0.00011927,2]
[323623506,1714143052625,-500.0,0.00011927,2]
[323623507,1714143052634,-500.0,0.00011927,2]
[323623508,1714143052643,-1494.2,0.00011927,2]
[323623509,1714143052652,-588.63,0.00011927,2]
[323623510,1714143052661,-500.0,0.00011927,2]
[323623511,1714143052671,-566.51,0.00011927,2]
[323623512,1714143052680,-1046.03,0.00011927,2]
[323623513,1714143052689,-500.0,0.00011927,2]
[323623514,1714143052698,-500.0,0.00011927,2]
[323623515,1714143052707,-510.28,0.00011927,2]
[323623516,1714143052716,-500.0,0.00011927,2]